[Event "XXII Obert Internacional d'Escacs Sant Marti 2022"]
[Site "Barcelona, Spain"]
[Date "2022.07.14"]
[Round "2.6"]
[White "Persson, Andreas"]
[Black "Kovchan, Alexander"]
[Result "0-1"]
[TimeControl "1.30 fb 30"]
[WhiteElo "2154"]
[BlackElo "2468"]

1. d4 {[%clk 01:30:56]} {[%emt 00:00:03]} Nf6 {[%clk 01:30:52]} {[%emt
00:00:08]} 2. Nf3 {[%clk 01:31:09]} {[%emt 00:00:17]} g6 {[%clk 01:31:06]}
{[%emt 00:00:16]} 3. g3 {[%clk 01:31:14]} {[%emt 00:00:25]} d5 {[%clk
01:31:14]} {[%emt 00:00:22]} 4. Bg2 {[%clk 01:31:28]} {[%emt 00:00:15]} c6
{[%clk 01:31:26]} {[%emt 00:00:18]} 5. O-O {[%clk 01:31:02]} {[%emt 00:00:57]}
Bg7 {[%clk 01:31:48]} {[%emt 00:00:08]} 6. b3 {[%clk 01:30:45]} {[%emt
00:00:48]} O-O {[%clk 01:31:44]} {[%emt 00:00:33]} 7. c4 {[%clk 01:30:36]}
{[%emt 00:00:39]} Bf5 {[%clk 01:30:19]} {[%emt 00:01:55]} 8. Bb2 {[%clk
01:28:29]} {[%emt 00:02:37]} Nbd7 {[%clk 01:30:31]} {[%emt 00:00:18]} 9. e3
{[%clk 01:27:13]} {[%emt 00:01:46]} Ne4 {[%clk 01:26:23]} {[%emt 00:04:38]} 10.
Qe2 {[%clk 01:26:27]} {[%emt 00:01:15]} Qa5 {[%clk 01:24:33]} {[%emt 00:02:21]}
11. Rc1 {[%clk 01:24:59]} {[%emt 00:01:58]} Rfc8 {[%clk 01:08:49]} {[%emt
00:16:15]} 12. Nc3 {[%clk 01:23:00]} {[%emt 00:02:28]} Nxc3 {[%clk 01:00:20]}
{[%emt 00:08:59]} 13. Bxc3 {[%clk 01:23:16]} {[%emt 00:00:14]} Qa6 {[%clk
01:00:44]} {[%emt 00:00:06]} 14. Bf1 {[%clk 01:19:41]} {[%emt 00:04:04]} dxc4
{[%clk 00:52:50]} {[%emt 00:08:25]} 15. bxc4 {[%clk 01:15:14]} {[%emt
00:04:58]} c5 {[%clk 00:47:59]} {[%emt 00:05:20]} 16. a4 {[%clk 00:59:51]}
{[%emt 00:15:53]} cxd4 {[%clk 00:35:54]} {[%emt 00:12:35]} 17. exd4 {[%clk
00:55:37]} {[%emt 00:04:45]} Qe6 {[%clk 00:35:57]} {[%emt 00:00:26]} 18. Qb2
{[%clk 00:48:47]} {[%emt 00:07:20]} Bg4 {[%clk 00:26:53]} {[%emt 00:09:34]} 19.
Nd2 {[%clk 00:43:54]} {[%emt 00:05:22]} Qb6 {[%clk 00:23:53]} {[%emt 00:03:31]}
20. Nb3 {[%clk 00:37:17]} {[%emt 00:07:07]} Qc7 {[%clk 00:23:53]} {[%emt
00:00:30]} 21. Qd2 {[%clk 00:34:40]} {[%emt 00:03:07]} Nf6 {[%clk 00:21:59]}
{[%emt 00:02:24]} 22. Re1 {[%clk 00:33:08]} {[%emt 00:02:02]} Bf5 {[%clk
00:21:38]} {[%emt 00:00:52]} 23. Bb4 {[%clk 00:29:11]} {[%emt 00:04:27]} e6
{[%clk 00:16:38]} {[%emt 00:05:30]} 24. Bg2 {[%clk 00:28:02]} {[%emt 00:01:38]}
Rab8 {[%clk 00:15:43]} {[%emt 00:01:25]} 25. Nc5 {[%clk 00:25:03]} {[%emt
00:03:28]} Nd7 {[%clk 00:13:43]} {[%emt 00:02:30]} 26. Ba5 {[%clk 00:24:41]}
{[%emt 00:00:53]} Qd6 {[%clk 00:11:04]} {[%emt 00:03:10]} 27. Nxb7 {[%clk
00:22:21]} {[%emt 00:02:50]} Qxd4 {[%clk 00:09:07]} {[%emt 00:02:27]} 28. Rac1
{[%clk 00:19:04]} {[%emt 00:03:47]} Nc5 {[%clk 00:06:48]} {[%emt 00:02:49]} 29.
Nd6 {[%clk 00:17:40]} {[%emt 00:01:54]} Qxd2 {[%clk 00:06:28]} {[%emt
00:00:50]} 30. Bxd2 {[%clk 00:18:03]} {[%emt 00:00:06]} Rd8 {[%clk 00:06:43]}
{[%emt 00:00:15]} 31. Nxf5 {[%clk 00:17:00]} {[%emt 00:01:33]} Rxd2 {[%clk
00:06:08]} {[%emt 00:01:05]} 32. Nxg7 {[%clk 00:16:46]} {[%emt 00:00:44]} Kxg7
{[%clk 00:06:28]} {[%emt 00:00:10]} 33. Rb1 {[%clk 00:16:11]} {[%emt 00:01:06]}
Rxb1 {[%clk 00:01:28]} {[%emt 00:05:30]} 34. Rxb1 {[%clk 00:16:35]} {[%emt
00:00:05]} a6 {[%clk 00:01:51]} {[%emt 00:00:07]} 35. Bf1 {[%clk 00:14:27]}
{[%emt 00:02:38]} Ra2 {[%clk 00:01:56]} {[%emt 00:00:25]} 36. Rb4 {[%clk
00:14:29]} {[%emt 00:00:28]} Rxa4 {[%clk 00:01:52]} {[%emt 00:00:35]} 37. Rb6
{[%clk 00:14:15]} {[%emt 00:00:44]} Kf6 {[%clk 00:01:47]} {[%emt 00:00:35]} 38.
Rc6 {[%clk 00:14:21]} {[%emt 00:00:23]} Ra5 {[%clk 00:02:16]} {[%emt 00:00:01]}
39. Rc7 {[%clk 00:14:27]} {[%emt 00:00:25]} e5 {[%clk 00:02:28]} {[%emt
00:00:17]} 40. h4 {[%clk 00:13:36]} {[%emt 00:01:20]} h5 {[%clk 00:02:39]}
{[%emt 00:00:19]} 41. Rc6+ {[%clk 00:13:25]} {[%emt 00:00:42]} Ke7 {[%clk
00:02:55]} {[%emt 00:00:14]} 42. Bg2 {[%clk 00:12:41]} {[%emt 00:01:14]} e4
{[%clk 00:02:51]} {[%emt 00:00:34]} 43. Rc7+ {[%clk 00:12:55]} {[%emt
00:00:17]} Ke6 {[%clk 00:03:05]} {[%emt 00:00:16]} 44. Bh3+ {[%clk 00:12:37]}
{[%emt 00:00:47]} f5 {[%clk 00:03:33]} {[%emt 00:00:03]} 45. Rc6+ {[%clk
00:12:52]} {[%emt 00:00:14]} Kf7 {[%clk 00:03:57]} {[%emt 00:00:06]} 46. Bf1
{[%clk 00:12:36]} {[%emt 00:00:46]} Ne6 {[%clk 00:03:36]} {[%emt 00:00:51]} 47.
c5 {[%clk 00:11:53]} {[%emt 00:01:13]} Rxc5 {[%clk 00:03:04]} {[%emt 00:01:02]}
48. Rxa6 {[%clk 00:12:16]} {[%emt 00:00:07]} Nd4 {[%clk 00:03:22]} {[%emt
00:00:12]} 49. Ra4 {[%clk 00:10:59]} {[%emt 00:01:47]} Nf3+ {[%clk 00:03:44]}
{[%emt 00:00:07]} 50. Kg2 {[%clk 00:11:17]} {[%emt 00:00:12]} Ne1+ {[%clk
00:03:24]} {[%emt 00:00:51]} 51. Kh3 {[%clk 00:10:28]} {[%emt 00:01:18]} Rc1
{[%clk 00:03:43]} {[%emt 00:00:11]} 52. Ra7+ {[%clk 00:09:21]} {[%emt
00:01:37]} Kf6 {[%clk 00:04:12]} {[%emt 00:00:02]} 53. Ra6+ {[%clk 00:09:37]}
{[%emt 00:00:14]} Kg7 {[%clk 00:04:27]} {[%emt 00:00:14]} 54. Ra7+ {[%clk
00:10:01]} {[%emt 00:00:06]} Kh6 {[%clk 00:04:52]} {[%emt 00:00:06]} 55. Ra2
{[%clk 00:09:41]} {[%emt 00:00:49]} Nf3 {[%clk 00:04:59]} {[%emt 00:00:22]} 56.
Kg2 {[%clk 00:09:33]} {[%emt 00:00:38]} Rc6 {[%clk 00:05:02]} {[%emt 00:00:28]}
57. Be2 {[%clk 00:09:06]} {[%emt 00:00:57]} Nd4 {[%clk 00:05:16]} {[%emt
00:00:16]} 58. Bd1 {[%clk 00:09:11]} {[%emt 00:00:24]} Kg7 {[%clk 00:05:26]}
{[%emt 00:00:20]} 59. Rd2 {[%clk 00:09:12]} {[%emt 00:00:28]} Rd6 {[%clk
00:05:42]} {[%emt 00:00:15]} 60. Ra2 {[%clk 00:08:06]} {[%emt 00:01:36]} Kf6
{[%clk 00:06:10]} {[%emt 00:00:01]} 61. Ra8 {[%clk 00:07:19]} {[%emt 00:01:18]}
Ne6 {[%clk 00:05:39]} {[%emt 00:01:01]} 62. Bb3 {[%clk 00:06:35]} {[%emt
00:01:14]} Nc5 {[%clk 00:05:18]} {[%emt 00:00:51]} 63. Bc4 {[%clk 00:06:37]}
{[%emt 00:00:27]} Rd4 {[%clk 00:05:23]} {[%emt 00:00:25]} 64. Bg8 {[%clk
00:06:19]} {[%emt 00:00:48]} Rd2 {[%clk 00:05:17]} {[%emt 00:00:37]} 65. Kf1
{[%clk 00:05:27]} {[%emt 00:01:22]} Nd3 {[%clk 00:05:07]} {[%emt 00:00:40]} 66.
Ra2 {[%clk 00:05:48]} {[%emt 00:00:09]} Rxa2 {[%clk 00:02:46]} {[%emt
00:02:51]} 67. Bxa2 {[%clk 00:06:12]} {[%emt 00:00:06]} f4 {[%clk 00:03:06]}
{[%emt 00:00:10]} 68. Bd5 {[%clk 00:05:19]} {[%emt 00:01:22]} Kf5 {[%clk
00:03:07]} {[%emt 00:00:30]} 69. Bc6 {[%clk 00:04:09]} {[%emt 00:01:40]} Ne5
{[%clk 00:02:50]} {[%emt 00:00:47]} 70. Bb7 {[%clk 00:03:52]} {[%emt 00:00:47]}
Nd3 {[%clk 00:01:46]} {[%emt 00:01:34]} 71. Bc6 {[%clk 00:03:46]} {[%emt
00:00:36]} e3 {[%clk 00:01:20]} {[%emt 00:00:56]} 72. Bd7+ {[%clk 00:02:47]}
{[%emt 00:01:29]} Ke5 {[%clk 00:01:30]} {[%emt 00:00:20]} 73. fxe3 {[%clk
00:02:10]} {[%emt 00:01:07]} fxe3 {[%clk 00:01:59]} {[%emt 00:00:01]} 74. Ke2
{[%clk 00:02:26]} {[%emt 00:00:14]} Kd4 {[%clk 00:02:23]} {[%emt 00:00:06]} 75.
Bb5 {[%clk 00:02:15]} {[%emt 00:00:41]} Nc1+ {[%clk 00:01:35]} {[%emt
00:01:18]} 76. Kd1 {[%clk 00:02:29]} {[%emt 00:00:16]} Na2 {[%clk 00:01:33]}
{[%emt 00:00:32]} 77. Be8 {[%clk 00:02:45]} {[%emt 00:00:13]} Nc3+ {[%clk
00:01:57]} {[%emt 00:00:06]} 78. Ke1 {[%clk 00:03:00]} {[%emt 00:00:15]} Ne4
{[%clk 00:02:22]} {[%emt 00:00:06]} 79. g4 {[%clk 00:02:03]} {[%emt 00:01:27]}
hxg4 {[%clk 00:02:50]} {[%emt 00:00:02]} 80. Bxg6 {[%clk 00:02:25]} {[%emt
00:00:08]} g3 {[%clk 00:03:16]} {[%emt 00:00:05]} 81. Kf1 {[%clk 00:02:02]}
{[%emt 00:00:52]} e2+ {[%clk 00:03:43]} {[%emt 00:00:03]} 0-1

[Event "XXII Obert Internacional d'Escacs Sant Marti 2022"]
[Site "Barcelona, Spain"]
[Date "2022.07.14"]
[Round "2.7"]
[White "Narciso Dublan, Marc"]
[Black "Jul Perez, Alberto"]
[Result "1-0"]
[TimeControl "1.30 fb 30"]
[WhiteElo "2461"]
[BlackElo "2095"]

1. e4 {[%emt 00:46:34]} c5 {[%emt 00:00:59]} 2. Nc3 {[%emt 00:00:39]} Nc6
{[%emt 00:00:36]} 3. Bb5 {[%emt 00:00:18]} g6 {[%emt 00:00:27]} 4. Bxc6 {[%emt
00:00:15]} bxc6 {[%emt 00:00:59]} 5. d3 {[%emt 00:00:12]} Bg7 {[%emt 00:00:40]}
6. Nge2 {[%emt 00:00:10]} e6 {[%emt 00:00:45]} 7. O-O {[%emt 00:04:58]} Ne7
{[%emt 00:00:16]} 8. b3 {[%emt 00:06:39]} O-O {[%emt 00:00:24]} 9. Bb2 {[%emt
00:00:05]} d6 {[%emt 00:07:45]} 10. Na4 {[%emt 00:08:34]} e5 {[%emt 00:01:04]}
11. f4 {[%emt 00:00:15]} f6 {[%emt 00:03:23]} 12. h3 {[%emt 00:05:28]} Be6
{[%emt 00:05:54]} 13. Qd2 {[%emt 00:01:44]} Nc8 {[%emt 00:02:44]} 14. Rf2
{[%emt 00:05:22]} Nb6 {[%emt 00:00:26]} 15. Nac3 {[%emt 00:00:23]} f5 {[%emt
00:03:00]} 16. Raf1 {[%emt 00:01:46]} Qh4 {[%emt 00:07:04]} 17. exf5 {[%emt
00:08:10]} Rxf5 {[%emt 00:02:07]} 18. Ne4 {[%emt 00:00:43]} Rd8 {[%emt
00:07:23]} 19. Qa5 {[%emt 00:09:58]} Nd5 {[%emt 00:10:23]} 20. fxe5 {[%emt
00:07:45]} Ne3 {[%emt 00:08:43]} 21. Rf4 {[%emt 00:19:31]} Qe7 {[%emt
00:01:40]} 22. exd6 {[%emt 00:00:37]} Qd7 {[%emt 00:03:04]} 23. Bxg7 {[%emt
00:01:27]} Kxg7 {[%emt 00:03:15]} 24. Qc3+ {[%emt 00:08:33]} Kg8 {[%emt
00:00:11]} 25. Rxf5 {[%emt 00:00:13]} 1-0

[Event "XXII Obert Internacional d'Escacs Sant Marti 2022"]
[Site "Barcelona, Spain"]
[Date "2022.07.14"]
[Round "2.8"]
[White "Diermair, Andreas"]
[Black "Paniagua Garcia, Jose Manuel"]
[Result "1-0"]
[TimeControl "1.30 fb 30"]
[WhiteElo "2452"]
[BlackElo "2082"]

1. Nf3 {[%clk 01:30:57]} {[%emt 00:00:02]} Nf6 {[%clk 01:30:31]} {[%emt
00:00:29]} 2. c4 {[%clk 01:31:22]} {[%emt 00:00:05]} c5 {[%clk 01:30:03]}
{[%emt 00:00:58]} 3. Nc3 {[%clk 01:31:37]} {[%emt 00:00:15]} g6 {[%clk
01:29:06]} {[%emt 00:01:26]} 4. e4 {[%clk 01:31:45]} {[%emt 00:00:23]} d6
{[%clk 01:28:27]} {[%emt 00:01:10]} 5. d4 {[%clk 01:32:02]} {[%emt 00:00:13]}
cxd4 {[%clk 01:25:42]} {[%emt 00:03:13]} 6. Nxd4 {[%clk 01:32:26]} {[%emt
00:00:07]} Bg7 {[%clk 01:25:56]} {[%emt 00:00:16]} 7. Be2 {[%clk 01:32:37]}
{[%emt 00:00:19]} Nc6 {[%clk 01:23:35]} {[%emt 00:02:51]} 8. Be3 {[%clk
01:32:45]} {[%emt 00:00:21]} Bd7 {[%clk 01:12:37]} {[%emt 00:11:27]} 9. O-O
{[%clk 01:31:02]} {[%emt 00:02:13]} O-O {[%clk 01:12:18]} {[%emt 00:00:49]} 10.
Nc2 {[%clk 01:30:48]} {[%emt 00:00:45]} Rc8 {[%clk 01:09:14]} {[%emt 00:03:33]}
11. f3 {[%clk 01:30:21]} {[%emt 00:00:58]} Qa5 {[%clk 01:04:02]} {[%emt
00:05:42]} 12. Rb1 {[%clk 01:25:33]} {[%emt 00:05:19]} Qh5 {[%clk 00:58:15]}
{[%emt 00:06:16]} 13. Qd2 {[%clk 01:24:15]} {[%emt 00:01:48]} Kh8 {[%clk
00:51:15]} {[%emt 00:07:29]} 14. b3 {[%clk 01:12:57]} {[%emt 00:11:48]} g5
{[%clk 00:35:44]} {[%emt 00:16:01]} 15. Bxg5 {[%clk 01:04:14]} {[%emt
00:09:14]} Rg8 {[%clk 00:35:50]} {[%emt 00:00:24]} 16. Rf2 {[%clk 01:03:44]}
{[%emt 00:00:59]} Qg6 {[%clk 00:33:17]} {[%emt 00:03:03]} 17. Be3 {[%clk
01:02:01]} {[%emt 00:02:14]} Nh5 {[%clk 00:30:16]} {[%emt 00:03:30]} 18. Nd5
{[%clk 01:00:17]} {[%emt 00:02:15]} e6 {[%clk 00:17:30]} {[%emt 00:13:17]} 19.
Nf4 {[%clk 00:58:05]} {[%emt 00:02:41]} Nxf4 {[%clk 00:17:15]} {[%emt
00:00:45]} 20. Bxf4 {[%clk 00:58:29]} {[%emt 00:00:05]} e5 {[%clk 00:17:32]}
{[%emt 00:00:12]} 21. Be3 {[%clk 00:58:40]} {[%emt 00:00:20]} f5 {[%clk
00:17:40]} {[%emt 00:00:22]} 22. exf5 {[%clk 00:57:32]} {[%emt 00:01:38]} Bxf5
{[%clk 00:17:56]} {[%emt 00:00:13]} 23. Rc1 {[%clk 00:57:18]} {[%emt 00:00:44]}
Bf6 {[%clk 00:11:31]} {[%emt 00:06:56]} 24. Bf1 {[%clk 00:54:33]} {[%emt
00:03:15]} Rc7 {[%clk 00:09:49]} {[%emt 00:02:12]} 25. Ne1 {[%clk 00:48:37]}
{[%emt 00:06:26]} Bh4 {[%clk 00:05:43]} {[%emt 00:04:36]} 26. g3 {[%clk
00:46:37]} {[%emt 00:02:30]} Nd4 {[%clk 00:02:51]} {[%emt 00:03:22]} 27. Bxd4
{[%clk 00:45:27]} {[%emt 00:01:40]} exd4 {[%clk 00:03:19]} {[%emt 00:00:02]} 28.
Rd1 {[%clk 00:42:42]} {[%emt 00:03:14]} Bf6 {[%clk 00:03:05]} {[%emt 00:00:44]}
29. Bd3 {[%clk 00:42:22]} {[%emt 00:00:50]} Rcg7 {[%clk 00:03:15]} {[%emt
00:00:21]} 30. Ng2 {[%clk 00:41:25]} {[%emt 00:01:27]} Be5 {[%clk 00:01:19]}
{[%emt 00:02:26]} 31. Nh4 {[%clk 00:39:22]} {[%emt 00:02:33]} 1-0

[Event "XXII Obert Internacional d'Escacs Sant Marti 2022"]
[Site "Barcelona, Spain"]
[Date "2022.07.14"]
[Round "2.9"]
[White "Munoz, Miguel"]
[Black "Pimpalkhare, Vedant"]
[Result "1/2-1/2"]
[TimeControl "1.30 fb 30"]
[WhiteElo "2408"]
[BlackElo "2057"]

1. e4 {[%clk 01:25:29]} {[%emt 00:05:29]} e6 {[%clk 01:30:54]} {[%emt
00:00:06]} 2. d4 {[%clk 01:25:41]} {[%emt 00:00:18]} d5 {[%clk 01:31:19]}
{[%emt 00:00:06]} 3. Nd2 {[%clk 01:25:50]} {[%emt 00:00:21]} c5 {[%clk
01:31:43]} {[%emt 00:00:06]} 4. Ngf3 {[%clk 01:25:45]} {[%emt 00:00:35]} Nc6
{[%clk 01:31:01]} {[%emt 00:01:12]} 5. dxc5 {[%clk 01:25:30]} {[%emt 00:00:45]}
Bxc5 {[%clk 01:31:20]} {[%emt 00:00:11]} 6. Bd3 {[%clk 01:25:53]} {[%emt
00:00:07]} Nge7 {[%clk 01:31:45]} {[%emt 00:00:05]} 7. O-O {[%clk 01:25:58]}
{[%emt 00:00:25]} O-O {[%clk 01:31:26]} {[%emt 00:00:49]} 8. c4 {[%clk
01:25:31]} {[%emt 00:00:57]} Ng6 {[%clk 01:24:59]} {[%emt 00:06:57]} 9. cxd5
{[%clk 01:24:33]} {[%emt 00:01:27]} exd5 {[%clk 01:25:18]} {[%emt 00:00:12]} 10.
exd5 {[%clk 01:24:54]} {[%emt 00:00:09]} Qxd5 {[%clk 01:24:11]} {[%emt
00:01:37]} 11. Nb3 {[%clk 01:24:17]} {[%emt 00:01:07]} Bf5 {[%clk 01:20:01]}
{[%emt 00:04:40]} 12. Nxc5 {[%clk 01:23:52]} {[%emt 00:00:55]} Qxc5 {[%clk
01:20:29]} {[%emt 00:00:02]} 13. Be3 {[%clk 01:23:53]} {[%emt 00:00:29]} Qa5
{[%clk 01:20:06]} {[%emt 00:00:51]} 14. Bxf5 {[%clk 01:23:46]} {[%emt
00:00:39]} Qxf5 {[%clk 01:20:33]} {[%emt 00:00:03]} 15. Qb3 {[%clk 01:24:05]}
{[%emt 00:00:10]} b6 {[%clk 01:15:51]} {[%emt 00:05:13]} 16. Rad1 {[%clk
01:22:50]} {[%emt 00:01:45]} Rfd8 {[%clk 01:12:57]} {[%emt 00:03:24]} 17. Qa4
{[%clk 01:22:36]} {[%emt 00:00:44]} Nge7 {[%clk 01:06:03]} {[%emt 00:07:25]} 18.
Bg5 {[%clk 01:22:19]} {[%emt 00:00:46]} f6 {[%clk 00:57:26]} {[%emt 00:09:07]}
19. Be3 {[%clk 01:18:37]} {[%emt 00:04:12]} Kf8 {[%clk 00:53:22]} {[%emt
00:04:34]} 20. b4 {[%clk 01:16:12]} {[%emt 00:02:54]} Qe4 {[%clk 00:46:26]}
{[%emt 00:07:26]} 21. a3 {[%clk 01:16:11]} {[%emt 00:00:32]} Rxd1 {[%clk
00:41:09]} {[%emt 00:05:47]} 22. Rxd1 {[%clk 01:16:25]} {[%emt 00:00:15]} Rd8
{[%clk 00:41:30]} {[%emt 00:00:09]} 23. Re1 {[%clk 01:09:58]} {[%emt 00:06:57]}
Qd3 {[%clk 00:36:33]} {[%emt 00:05:28]} 24. h3 {[%clk 01:03:02]} {[%emt
00:07:26]} Rd5 {[%clk 00:33:28]} {[%emt 00:03:35]} 25. Rc1 {[%clk 01:02:15]}
{[%emt 00:01:16]} Qb5 {[%clk 00:32:36]} {[%emt 00:01:23]} 26. Qc2 {[%clk
01:01:25]} {[%emt 00:01:19]} Qd3 {[%clk 00:30:57]} {[%emt 00:02:10]} 27. Qb2
{[%clk 00:56:51]} {[%emt 00:05:04]} Ne5 {[%clk 00:28:21]} {[%emt 00:03:06]} 28.
Ne1 {[%clk 00:53:21]} {[%emt 00:03:59]} Qe4 {[%clk 00:26:25]} {[%emt 00:02:25]}
29. Qb3 {[%clk 00:52:30]} {[%emt 00:01:23]} Nf5 {[%clk 00:22:09]} {[%emt
00:04:46]} 30. Rc8+ {[%clk 00:52:08]} {[%emt 00:00:51]} Ke7 {[%clk 00:22:06]}
{[%emt 00:00:31]} 31. Rc7+ {[%clk 00:52:24]} {[%emt 00:00:17]} Rd7 {[%clk
00:21:19]} {[%emt 00:01:17]} 32. Rxd7+ {[%clk 00:50:59]} {[%emt 00:01:54]} Nxd7
{[%clk 00:21:24]} {[%emt 00:00:25]} 33. Nf3 {[%clk 00:49:42]} {[%emt 00:01:45]}
Ne5 {[%clk 00:15:54]} {[%emt 00:06:02]} 34. Nxe5 {[%clk 00:47:24]} {[%emt
00:02:48]} Qxe5 {[%clk 00:16:18]} {[%emt 00:00:06]} 35. Qd3 {[%clk 00:47:48]}
{[%emt 00:00:06]} Qa1+ {[%clk 00:16:13]} {[%emt 00:00:35]} 36. Kh2 {[%clk
00:48:05]} {[%emt 00:00:13]} Qe5+ {[%clk 00:16:39]} {[%emt 00:00:04]} 37. Kg1
{[%clk 00:47:00]} {[%emt 00:01:35]} Qa1+ {[%clk 00:16:21]} {[%emt 00:00:48]} 38.
Kh2 {[%clk 00:47:22]} {[%emt 00:00:08]} Qe5+ {[%clk 00:16:47]} {[%emt
00:00:04]} 39. Kg1 {[%clk 00:47:44]} {[%emt 00:00:08]} 1/2-1/2

[Event "XXII Obert Internacional d'Escacs Sant Marti 2022"]
[Site "Barcelona, Spain"]
[Date "2022.07.14"]
[Round "2.10"]
[White "Valenzuela Gomez, Fernando"]
[Black "Ortiz Verdezoto, Anahi"]
[Result "1-0"]
[TimeControl "1.30 fb 30"]
[WhiteElo "2373"]
[BlackElo "2046"]

1. Nf3 {[%clk 01:26:40]} {[%emt 00:04:17]} Nf6 {[%clk 01:30:08]} {[%emt
00:00:54]} 2. c4 {[%clk 01:27:06]} {[%emt 00:00:04]} b6 {[%clk 01:30:21]}
{[%emt 00:00:17]} 3. g3 {[%clk 01:19:52]} {[%emt 00:07:44]} c5 {[%clk
01:30:22]} {[%emt 00:00:30]} 4. Nc3 {[%clk 01:16:35]} {[%emt 00:03:45]} Bb7
{[%clk 01:28:36]} {[%emt 00:02:17]} 5. Bg2 {[%clk 01:16:59]} {[%emt 00:00:06]}
e6 {[%clk 01:27:23]} {[%emt 00:01:43]} 6. O-O {[%clk 01:17:16]} {[%emt
00:00:12]} Be7 {[%clk 01:27:30]} {[%emt 00:00:23]} 7. d4 {[%clk 01:17:14]}
{[%emt 00:00:32]} cxd4 {[%clk 01:27:55]} {[%emt 00:00:05]} 8. Qxd4 {[%clk
01:17:37]} {[%emt 00:00:08]} a6 {[%clk 01:26:00]} {[%emt 00:02:26]} 9. Be3
{[%clk 01:10:42]} {[%emt 00:07:23]} Bc5 {[%clk 01:22:20]} {[%emt 00:04:10]} 10.
Qf4 {[%clk 01:07:01]} {[%emt 00:04:11]} Bxe3 {[%clk 01:16:22]} {[%emt
00:06:28]} 11. Qxe3 {[%clk 01:06:40]} {[%emt 00:00:52]} d6 {[%clk 01:14:37]}
{[%emt 00:02:15]} 12. Rfd1 {[%clk 01:04:03]} {[%emt 00:03:07]} O-O {[%clk
01:06:13]} {[%emt 00:08:54]} 13. Qf4 {[%clk 00:52:29]} {[%emt 00:12:03]} Ne8
{[%clk 00:55:03]} {[%emt 00:11:41]} 14. Rd2 {[%clk 00:51:08]} {[%emt 00:01:51]}
Nd7 {[%clk 00:48:19]} {[%emt 00:07:14]} 15. Rad1 {[%clk 00:50:21]} {[%emt
00:01:17]} Rc8 {[%clk 00:45:51]} {[%emt 00:02:57]} 16. Ng5 {[%clk 00:41:18]}
{[%emt 00:09:33]} Bxg2 {[%clk 00:37:26]} {[%emt 00:08:55]} 17. Kxg2 {[%clk
00:41:38]} {[%emt 00:00:09]} Rc5 {[%clk 00:32:57]} {[%emt 00:05:00]} 18. Nge4
{[%clk 00:39:12]} {[%emt 00:02:56]} Rf5 {[%clk 00:32:10]} {[%emt 00:01:18]} 19.
Qe3 {[%clk 00:37:19]} {[%emt 00:02:22]} Ne5 {[%clk 00:23:28]} {[%emt 00:09:12]}
20. b3 {[%clk 00:36:59]} {[%emt 00:00:51]} b5 {[%clk 00:18:02]} {[%emt
00:05:55]} 21. f3 {[%clk 00:33:15]} {[%emt 00:04:13]} bxc4 {[%clk 00:14:46]}
{[%emt 00:03:48]} 22. g4 {[%clk 00:32:58]} {[%emt 00:00:47]} Nxg4 {[%clk
00:15:10]} {[%emt 00:00:05]} 23. fxg4 {[%clk 00:32:45]} {[%emt 00:00:43]} Re5
{[%clk 00:15:38]} {[%emt 00:00:01]} 24. Qf3 {[%clk 00:30:12]} {[%emt 00:03:04]}
cxb3 {[%clk 00:12:47]} {[%emt 00:03:23]} 25. Nxd6 {[%clk 00:28:11]} {[%emt
00:02:30]} Qg5 {[%clk 00:11:17]} {[%emt 00:01:59]} 26. Nxe8 {[%clk 00:22:27]}
{[%emt 00:06:15]} bxa2 {[%clk 00:07:30]} {[%emt 00:04:17]} 27. Rxa2 {[%clk
00:17:12]} {[%emt 00:05:44]} Rxe8 {[%clk 00:07:33]} {[%emt 00:00:28]} 28. Rxa6
{[%clk 00:14:23]} {[%emt 00:03:19]} f5 {[%clk 00:05:42]} {[%emt 00:02:21]} 29.
Rd7 {[%clk 00:09:53]} {[%emt 00:04:59]} h5 {[%clk 00:00:34]} {[%emt 00:05:38]}
30. Raa7 {[%clk 00:09:04]} {[%emt 00:01:19]} hxg4 {[%clk 00:00:38]} {[%emt
00:00:28]} 31. Qb7 {[%clk 00:08:44]} {[%emt 00:00:48]} Qf6 {[%clk 00:00:35]}
{[%emt 00:00:33]} 32. Rxg7+ {[%clk 00:09:08]} {[%emt 00:00:07]} Kh8 {[%clk
00:01:02]} {[%emt 00:00:03]} 33. Rh7+ {[%clk 00:09:28]} {[%emt 00:00:09]} Kg8
{[%clk 00:01:31]} {[%emt 00:00:02]} 34. Rh8+ {[%clk 00:09:27]} {[%emt
00:00:30]} 1-0